fUST/lending_fUST_20240902
["ID","MTS","AMOUNT","RATE_DAILY","PERIOD"]
[336926921,1725244263875,-1356.19,0.00026575,2]
[336926922,1725244263886,-12312.44,0.00026575,2]
[336926923,1725244263896,-840.25,0.00026575,2]
[336926924,1725244263906,-2656.64,0.00026575,2]
[336926925,1725244263921,-1908.92,0.00026575,2]
[336926926,1725244263931,-342.42713292,0.00026575,2]
[336926927,1725244263947,-718.57,0.00026575,2]
[336926928,1725244263957,-568.35,0.00026575,2]
[336926929,1725244263968,-1873.9,0.00026575,2]
[336926930,1725244263978,-500.0,0.00026575,2]
[336926931,1725244263989,-500.0,0.00026575,2]
[336926932,1725244263999,-516.77,0.00026575,2]
[336926933,1725244264011,-500.0,0.00026575,2]
[336926934,1725244264021,-2353.96,0.00026575,2]
[336926935,1725244264032,-2544.03,0.00026575,2]
[336926936,1725244264042,-781.86,0.00026575,2]
[336926937,1725244264052,-584.55,0.00026575,2]
[336926938,1725244264062,-500.0,0.00026575,2]
[336926939,1725244264072,-530.75,0.00026575,2]
[336926940,1725244264083,-1003.77,0.00026575,2]
[336926941,1725244264093,-500.0,0.00026575,2]
[336926942,1725244264104,-500.0,0.00026575,2]
[336926943,1725244264114,-500.0,0.00026575,2]
[336926944,1725244264124,-1362.28,0.00026575,2]
[336926945,1725244264134,-1079.24,0.00026575,2]
[336926946,1725244264143,-1444.21,0.00026575,2]
[336926947,1725244264153,-1337.77,0.00026575,2]
[336926948,1725244264164,-500.0,0.00026575,2]
[336926949,1725244264174,-1483.34,0.00026575,2]
[336926950,1725244264184,-575.48,0.00026575,2]
[336926951,1725244264194,-500.0,0.00026575,2]
[336926952,1725244264204,-500.0,0.00026575,2]
[336926953,1725244264215,-1890.91,0.00026575,2]
[336926954,1725244264225,-4444.47,0.00026575,2]
[336926955,1725244264236,-1535.45,0.00026575,2]
[336926956,1725244264246,-2261.1,0.00026575,2]
[336926957,1725244264256,-1845.12,0.00026575,2]
[336926958,1725244264271,-619.59,0.00026575,2]
[336926959,1725244264281,-500.0,0.00026575,2]
[336926960,1725244264291,-1434.23,0.00026575,2]
[336926961,1725244264301,-1255.7,0.00026575,2]
[336926962,1725244264312,-1004.6,0.00026575,2]
[336926963,1725244264322,-983.95,0.00026575,2]
[336926964,1725244264332,-578.71,0.00026575,2]
[336926965,1725244264342,-1246.24,0.00026575,2]
[336926966,1725244264352,-1327.41,0.00026575,2]
[336926967,1725244264362,-878.27,0.00026575,2]
[336926968,1725244264373,-1189.91,0.00026575,2]
[336926969,1725244264383,-919.9,0.00026575,2]
[336926970,1725244264392,-584.36,0.00026575,2]
[336926971,1725244264402,-1473.81,0.00026575,2]
[336926972,1725244264412,-771.66,0.00026575,2]
[336926973,1725244264422,-523.46,0.00026575,2]
[336926974,1725244264432,-532.51,0.00026575,2]
[336926975,1725244264441,-854.3,0.00026575,2]
[336926976,1725244264451,-522.04,0.00026575,2]
[336926977,1725244264461,-500.0,0.00026575,2]
[336926978,1725244264470,-7078.87,0.00026575,2]
[336926979,1725244264480,-828.09,0.00026575,2]
[336926980,1725244264490,-500.0,0.00026575,2]
[336926981,1725244264500,-282.76255339,0.00026575,2]
[336926982,1725244264514,-1368.86,0.00026575,2]
[336926983,1725244264524,-1446.34,0.00026575,2]
[336926984,1725244264533,-500.0,0.00026575,2]
[336926985,1725244264543,-500.0,0.00026575,2]
[336926986,1725244264553,-1217.74,0.00026575,2]
[336926987,1725244264562,-1577.1,0.00026575,2]
[336926988,1725244264572,-686.55,0.00026575,2]
[336926989,1725244264584,-689.03,0.00026575,2]
[336926990,1725244264594,-1195.91,0.00026575,2]
[336926991,1725244264604,-500.0,0.00026575,2]
[336926992,1725244264614,-3222.21,0.00026575,2]
[336926993,1725244264624,-1060.84,0.00026575,2]
[336926994,1725244264634,-1192.01,0.00026575,2]
[336926995,1725244264644,-2658.99,0.00026575,2]
[336926996,1725244264654,-500.0,0.00026575,2]
[336926997,1725244264664,-1057.63,0.00026575,2]
[336926998,1725244264673,-1126.56,0.00026575,2]
[336926999,1725244264683,-1146.75,0.00026575,2]
[336927000,1725244264693,-1788.13,0.00026575,2]
[336927001,1725244264703,-9068.51,0.00026575,2]
[336927002,1725244264713,-1162.01,0.00026575,2]
[336927003,1725244264723,-500.0,0.00026575,2]
[336927004,1725244264733,-500.0,0.00026575,2]
[336927005,1725244264744,-500.0,0.00026575,2]
[336927006,1725244264754,-500.0,0.00026575,2]
[336927007,1725244264766,-500.0,0.00026575,2]
[336927008,1725244264777,-177.6880762,0.00026583,2]
[336927009,1725244264787,-409.6979826,0.00026583,2]
[336927010,1725244264797,-409.6979826,0.00026583,2]
[336927011,1725244264807,-409.6979826,0.00026583,2]
[336927012,1725244264818,-409.6979826,0.00026583,2]
[336927013,1725244264828,-821.1358555,0.00026583,2]
[336927014,1725244264837,-151.0,0.00026655,3]
[336927015,1725244264847,-500.0,0.000268,2]
[336927016,1725244264857,-151.0,0.00026828,3]
[336927017,1725244264867,-561.37,0.00026849,2]
[336927018,1725244264877,-500.0,0.00026849,2]
[336927019,1725244264887,-500.0,0.00026849,2]
[336927020,1725244264897,-500.0,0.00026849,2]
[336927021,1725244264907,-500.0,0.00026849,2]
[336927022,1725244264917,-500.0,0.00026849,2]
[336927023,1725244264928,-500.0,0.00026849,2]
[336927024,1725244264938,-500.0,0.00026849,2]
[336927025,1725244264949,-638.44,0.00026849,2]
[336927026,1725244264960,-664.15,0.00026849,2]
[336927027,1725244264970,-500.0,0.00026849,2]
[336927028,1725244264979,-561.25,0.00026849,2]
[336927029,1725244264990,-500.0,0.00026849,2]
[336927030,1725244265001,-500.0,0.00026849,10]
[336927031,1725244265012,-500.0,0.00026849,2]
[336927032,1725244265025,-1199.58,0.00026849,2]
[336927033,1725244265037,-500.0,0.00026849,2]
[336927034,1725244265048,-500.0,0.00026849,2]
[336927035,1725244265058,-500.0,0.00026849,2]
[336927036,1725244265068,-983.39,0.00026849,2]
[336927037,1725244265078,-500.0,0.00026849,2]
[336927038,1725244265091,-500.0,0.00026849,2]
[336927039,1725244265100,-500.0,0.00026849,2]
[336927040,1725244265111,-500.0,0.00026849,2]
[336927041,1725244265122,-707.21,0.00026849,2]
[336927042,1725244265132,-711.51,0.00026849,2]
[336927043,1725244265143,-591.72,0.00026849,2]
[336927044,1725244265152,-509.95,0.00026849,2]
[336927045,1725244265162,-500.0,0.00026849,2]
[336927046,1725244265171,-500.0,0.00026849,2]
[336927047,1725244265182,-837.03,0.00026849,2]
[336927048,1725244265192,-500.0,0.00026849,2]
[336927049,1725244265202,-674.02,0.00026849,2]
[336927050,1725244265212,-380.60827374,0.00026849,2]
[336927051,1725244265222,-671.54,0.00026849,2]
[336927052,1725244265232,-520.61,0.00026849,2]
[336927053,1725244265242,-634.79,0.00026849,2]
[336927054,1725244265252,-557.69,0.00026849,2]
[336927055,1725244265264,-500.0,0.00026849,2]
[336927056,1725244265274,-699.39,0.00026849,2]
[336927057,1725244265283,-500.0,0.00026849,2]
[336927058,1725244265293,-3329.95,0.00026849,2]
[336927059,1725244265303,-550.13,0.00026849,2]
[336927060,1725244265312,-500.0,0.00026849,2]
[336927061,1725244265322,-1131.15,0.00026849,2]
[336927062,1725244265332,-500.0,0.00026849,2]
[336927063,1725244265342,-500.0,0.00026849,2]
[336927064,1725244265351,-513.48,0.00026849,2]
[336927065,1725244265360,-500.0,0.00026849,2]
[336927066,1725244265371,-626.48,0.00026849,2]
[336927067,1725244265380,-880.22,0.00026849,2]
[336927068,1725244265390,-452.44250149,0.00026849,2]
[336927069,1725244265399,-500.0,0.00026849,2]
[336927070,1725244265409,-842.85,0.00026849,2]
[336927071,1725244265419,-660.85,0.00026849,2]
[336927072,1725244265429,-559.56438059,0.00026849,2]
[336927073,1725244265439,-500.0,0.00026849,2]
[336927074,1725244265448,-151.0,0.00026849,7]
[336927075,1725244265459,-500.0,0.00026849,2]
[336927076,1725244265468,-952.82,0.00026849,2]
[336927077,1725244265479,-926.65,0.00026849,2]
[336927078,1725244265490,-891.28,0.00026849,2]
[336927079,1725244265503,-732.92,0.00026849,2]
[336927080,1725244265515,-500.0,0.00026849,2]
[336927081,1725244265525,-500.0,0.00026849,2]
[336927082,1725244265535,-1265.8,0.00026849,2]
[336927083,1725244265545,-925.37401875,0.00026849,2]
[336927084,1725244288233,163.373762,0.00014247,2]
[336927085,1725244373563,-701.05004151,0.00024557,2]
[336927087,1725244400763,-181.94995849,0.00024656,2]
[336927092,1725244691059,350.0,0.0002,2]
[336927093,1725244707867,350.0,0.0002,2]
[336927094,1725244729156,213.581213,0.0002,2]
[336927097,1725244781442,166.04261,0.00014247,2]
[336927104,1725245180485,200.0522937,0.00025,120]
[336927105,1725245354178,-160.0,0.00023764,3]
[336927106,1725245354201,-55.63159972,0.00023829,2]
[336927737,1725245439013,-102.91615528,0.00023829,2]
[336927739,1725245439025,-444.290682,0.00023836,2]
[336927741,1725245439035,-160.0,0.00024129,4]
[336927744,1725245439046,-158.547755,0.0002445,2]
[336927746,1725245439056,-160.0,0.00024493,5]
[336927748,1725245439065,-613.41878633,0.00024557,2]
[336927774,1725245439298,-1938.11822919,0.00024558,2]
[336927776,1725245439311,-300.0,0.00024646,2]
[336927778,1725245439321,-23573.0903174,0.00024647,3]
[336927781,1725245439331,-5238.46451498,0.00024648,3]
[336927783,1725245439342,-327.10682094,0.00024656,2]
[336927785,1725245439351,-505.03051663,0.00024657,2]
[336927787,1725245439361,-506.53194265,0.00024657,2]
[336927789,1725245439370,-500.0,0.00024657,2]
[336927791,1725245439380,-500.0,0.00024657,2]
[336927793,1725245439391,-500.0,0.00024657,2]
[336927795,1725245439400,-500.0,0.00024657,2]
[336927797,1725245439412,-503.44164743,0.00024657,2]
[336927798,1725245439422,-500.0,0.00024657,2]
[336927799,1725245439431,-500.0,0.00024657,2]
[336927800,1725245439440,-500.0,0.00024657,2]
[336927801,1725245439449,-500.0,0.00024657,2]
[336927802,1725245439459,-500.0,0.00024657,2]
[336927803,1725245439469,-934.21,0.00024657,2]
[336927804,1725245439479,-444.9581942,0.00024657,2]
[336927805,1725245439488,-500.0,0.00024657,2]
[336927806,1725245439498,-500.0,0.00024657,2]
[336927807,1725245439507,-500.0,0.00024657,2]
[336927808,1725245439516,-526.35037879,0.00024657,2]
[336927809,1725245439526,-500.0,0.00024657,2]
[336927810,1725245439535,-500.0,0.00024657,2]
[336927811,1725245439544,-500.0,0.00024657,2]
[336927812,1725245439554,-500.0,0.00024657,2]
[336927813,1725245439563,-500.0,0.00024657,2]
[336927814,1725245439572,-500.0,0.00024657,2]
[336927815,1725245439581,-500.0,0.00024657,2]
[336927816,1725245439591,-501.7539955,0.00024657,2]
[336927817,1725245439600,-500.0,0.00024657,2]
[336927818,1725245439610,-500.0,0.00024657,2]
[336927819,1725245439619,-531.04903341,0.00024657,2]
[336927821,1725245439629,-518.75497936,0.00024657,2]
[336927823,1725245439638,-500.0,0.00024657,2]
[336927825,1725245439648,-500.0,0.00024657,2]
[336927827,1725245439661,-500.0,0.00024657,2]
[336927829,1725245439671,-500.0,0.00024657,2]
[336927831,1725245439681,-500.0,0.00024657,2]
[336927833,1725245439690,-500.0,0.00024657,2]
[336927835,1725245439699,-500.0,0.00024657,2]
[336927837,1725245439709,-500.0,0.00024657,2]
[336927839,1725245439719,-500.0,0.00024657,2]
[336927841,1725245439730,-500.0,0.00024657,2]
[336927843,1725245439739,-500.0,0.00024657,2]
[336927845,1725245439749,-500.0,0.00024657,2]
[336927847,1725245439758,-500.0,0.00024657,2]
[336927849,1725245439767,-500.0,0.00024657,2]
[336927851,1725245439777,-500.0,0.00024657,2]
[336927853,1725245439786,-500.0,0.00024657,2]
[336927855,1725245439798,-500.0,0.00024657,2]
[336927857,1725245439808,-500.0,0.00024657,2]
[336927859,1725245439817,-500.0,0.00024657,2]
[336927861,1725245439827,-500.0,0.00024657,2]
[336927863,1725245439836,-500.0,0.00024657,2]
[336927865,1725245439845,-500.0,0.00024657,2]
[336927867,1725245439855,-500.0,0.00024657,2]
[336927869,1725245439864,-500.0,0.00024657,2]
[336927871,1725245439878,-500.0,0.00024657,2]
[336927873,1725245439892,-631.23,0.00024657,2]
[336927875,1725245439903,-500.0,0.00024657,2]
[336927877,1725245439914,-500.0,0.00024657,2]
[336927879,1725245439923,-500.0,0.00024657,2]
[336927881,1725245439934,-500.0,0.00024657,2]
[336927883,1725245439944,-500.0,0.00024657,2]
[336927885,1725245439955,-503.04928506,0.00024657,2]
[336927888,1725245439968,-500.0,0.00024657,2]
[336927890,1725245439978,-501.77048543,0.00024657,2]
[336927892,1725245439988,-500.0,0.00024657,2]
[336927894,1725245439999,-500.0,0.00024657,2]
[336927896,1725245440011,-500.0,0.00024657,2]
[336927898,1725245440023,-500.0,0.00024657,2]
[336927900,1725245440032,-500.0,0.00024657,2]
[336927902,1725245440042,-500.0,0.00024657,2]
[336927904,1725245440054,-500.0,0.00024657,2]
[336927906,1725245440064,-500.0,0.00024657,2]
[336927908,1725245440076,-506.20146004,0.00024657,2]
[336927910,1725245440087,-500.0,0.00024657,2]
[336927912,1725245440098,-572.3146325,0.00024657,2]
[336927915,1725245440109,-500.0,0.00024657,2]
[336927917,1725245440119,-500.0,0.00024657,2]
[336927918,1725245440129,-500.0,0.00024657,2]
[336927921,1725245440141,-500.0,0.00024657,2]
[336927923,1725245440153,-500.0,0.00024657,2]
[336927925,1725245440163,-200.41400638,0.00024657,2]
[336927927,1725245440172,-504.30308324,0.00024657,2]
[336927928,1725245440181,-500.0,0.00024657,2]
[336927930,1725245440190,-585.40835845,0.00024657,2]
[336927932,1725245440200,-500.0,0.00024657,2]
[336927935,1725245440210,-500.0,0.00024657,2]
[336927937,1725245440219,-502.30849553,0.00024657,2]
[336927939,1725245440228,-500.0,0.00024657,2]
[336927941,1725245440238,-500.0,0.00024657,2]
[336927943,1725245440247,-500.0,0.00024657,4]
[336927944,1725245440256,-308.68349162,0.00024657,2]
[336927946,1725245440266,-500.0,0.00024657,2]
[336927948,1725245440276,-500.0,0.00024657,2]
[336927950,1725245440285,-500.0,0.00024657,2]
[336927952,1725245440295,-500.0,0.00024657,2]
[336927954,1725245440304,-500.0,0.00024657,2]
[336927956,1725245440314,-500.0,0.00024657,2]
[336927958,1725245440323,-500.0,0.00024657,2]
[336927960,1725245440333,-500.0,0.00024657,2]
[336927963,1725245440347,-500.0,0.00024657,2]
[336927965,1725245440356,-153.8158451,0.00024657,2]
[336927967,1725245440366,-500.0,0.00024657,2]
[336927969,1725245440375,-500.0,0.00024657,2]
[336927971,1725245440384,-500.0,0.00024657,2]
[336927973,1725245440394,-500.0,0.00024657,2]
[336927975,1725245440404,-500.0,0.00024657,2]
[336927977,1725245440414,-500.0,0.00024657,2]
[336927979,1725245440425,-500.0,0.00024657,2]
[336927981,1725245440435,-500.0,0.00024657,2]
[336927983,1725245440445,-500.0,0.00024657,2]
[336927985,1725245440455,-500.0,0.00024657,2]
[336927987,1725245440465,-500.0,0.00024657,2]
[336927988,1725245440475,-500.0,0.00024657,2]
[336927990,1725245440489,-504.81597529,0.00024657,2]
[336927992,1725245440500,-312.22824934,0.00024657,2]
[336927994,1725245440510,-500.0,0.00024657,2]
[336927996,1725245440520,-500.0,0.00024657,2]
[336927998,1725245440531,-500.0,0.00024657,2]
[336928001,1725245440542,-500.0,0.00024657,2]
[336928003,1725245440553,-500.0,0.00024657,2]
[336928005,1725245440564,-500.0,0.00024657,2]
[336928007,1725245440574,-500.0,0.00024657,2]
[336928008,1725245440583,-500.0,0.00024657,2]
[336928010,1725245440593,-502.96992128,0.00024657,2]
[336928012,1725245440602,-500.0,0.00024657,2]
[336928014,1725245440612,-500.0,0.00024657,2]
[336928016,1725245440622,-500.0,0.00024657,2]
[336928018,1725245440632,-500.0,0.00024657,2]
[336928020,1725245440642,-500.0,0.00024657,2]
[336928022,1725245440652,-500.0,0.00024657,2]
[336928024,1725245440662,-500.0,0.00024657,2]
[336928026,1725245440672,-500.0,0.00024657,2]
[336928028,1725245440682,-500.0,0.00024657,2]
[336928030,1725245440691,-500.0,0.00024657,2]
[336928032,1725245440702,-500.0,0.00024657,2]
[336928034,1725245440713,-500.0,0.00024657,2]
[336928036,1725245440723,-500.0,0.00024657,2]
[336928038,1725245440734,-500.0,0.00024657,2]
[336928040,1725245440744,-500.0,0.00024657,2]
[336928042,1725245440755,-500.0,0.00024657,2]
[336928044,1725245440765,-500.0,0.00024657,2]
[336928046,1725245440775,-500.0,0.00024657,2]
[336928048,1725245440784,-500.0,0.00024657,2]
[336928050,1725245440793,-500.0,0.00024657,2]
[336928052,1725245440803,-500.0,0.00024657,2]
[336928054,1725245440812,-500.0,0.00024657,2]
[336928056,1725245440824,-608.9,0.00024657,2]
[336928059,1725245440835,-792.2,0.00024657,2]
[336928061,1725245440846,-500.0,0.00024657,2]
[336928063,1725245440858,-940.86,0.00024657,2]
[336928065,1725245440868,-500.0,0.00024657,2]
[336928066,1725245440881,-500.0,0.00024657,2]
[336928068,1725245440891,-500.0,0.00024657,2]
[336928070,1725245440902,-500.0,0.00024657,2]
[336928073,1725245440912,-980.56,0.00024657,2]
[336928075,1725245440921,-507.85186755,0.00024657,2]
[336928076,1725245440930,-500.0,0.00024657,2]
[336928079,1725245440940,-500.0,0.00024657,2]
[336928081,1725245440952,-500.0,0.00024657,2]
[336928083,1725245440962,-500.0,0.00024657,2]
[336928085,1725245440971,-500.0,0.00024657,2]
[336928087,1725245440981,-500.0,0.00024657,2]
[336928089,1725245440990,-500.0,0.00024657,2]
[336928091,1725245441000,-500.0,0.00024657,2]
[336928093,1725245441010,-500.0,0.00024657,2]
[336928095,1725245441019,-500.0,0.00024657,2]
[336928097,1725245441030,-500.0,0.00024657,2]
[336928099,1725245441039,-500.0,0.00024657,2]
[336928101,1725245441048,-500.0,0.00024657,2]
[336928103,1725245441058,-500.0,0.00024657,2]
[336928105,1725245441068,-501.75457791,0.00024657,2]
[336928107,1725245441077,-500.0,0.00024657,2]
[336928109,1725245441087,-500.61000258,0.00024657,2]
[336928111,1725245441097,-500.0,0.00024657,2]
[336928113,1725245441106,-500.0,0.00024657,2]
[336928115,1725245441116,-500.0,0.00024657,2]
[336928117,1725245441125,-500.0,0.00024657,2]
[336928119,1725245441134,-500.0,0.00024657,2]
[336928121,1725245441144,-487.86197697,0.00024657,2]
[336928123,1725245441155,-500.0,0.00024657,2]
[336928125,1725245441164,-505.29352395,0.00024657,2]
[336928127,1725245441174,-500.0,0.00024657,2]
[336928129,1725245441185,-500.0,0.00024657,2]
[336928131,1725245441196,-500.0,0.00024657,2]
[336928133,1725245441207,-500.0,0.00024657,2]
[336928135,1725245441216,-500.0,0.00024657,2]
[336928137,1725245441226,-500.0,0.00024657,2]
[336928139,1725245441236,-519.70414707,0.00024657,2]
[336928142,1725245441248,-500.0,0.00024657,2]
[336928144,1725245441259,-500.0,0.00024657,2]
[336928146,1725245441268,-500.0,0.00024657,2]
[336928148,1725245441277,-500.0,0.00024657,2]
[336928150,1725245441287,-502.84179359,0.00024657,2]
[336928152,1725245441296,-500.0,0.00024657,2]
[336928154,1725245441306,-500.0,0.00024657,2]
[336928156,1725245441315,-503.82093337,0.00024657,2]
[336928158,1725245441325,-500.0,0.00024657,2]
[336928160,1725245441334,-500.0,0.00024657,2]
[336928162,1725245441344,-500.0,0.00024657,2]
[336928164,1725245441353,-500.0,0.00024657,2]
[336928166,1725245441363,-500.0,0.00024657,2]
[336928168,1725245441373,-500.0,0.00024657,2]
[336928170,1725245441383,-500.0,0.00024657,2]
[336928172,1725245441392,-502.40806551,0.00024657,2]
[336928174,1725245441402,-500.0,0.00024657,2]
[336928176,1725245441414,-500.0,0.00024657,2]
[336928178,1725245441424,-500.0,0.00024657,2]
[336928180,1725245441434,-395.05004339,0.00024657,2]
[336928182,1725245441446,-500.0,0.00024657,2]
[336928185,1725245441458,-500.0,0.00024657,2]
[336928187,1725245441468,-511.14253746,0.00024657,2]
[336928189,1725245441478,-500.0,0.00024657,2]
[336928191,1725245441488,-604.28,0.00024657,2]
[336928193,1725245441498,-500.0,0.00024657,2]
[336928195,1725245441509,-500.0,0.00024657,2]
[336928197,1725245441519,-500.0,0.00024657,2]
[336928199,1725245441529,-500.0,0.00024657,2]
[336928201,1725245441539,-500.0,0.00024657,2]
[336928203,1725245441550,-500.0,0.00024657,2]
[336928205,1725245441560,-500.0,0.00024657,2]
[336928207,1725245441570,-500.0,0.00024657,2]
[336928209,1725245441580,-500.0,0.00024657,2]
[336928212,1725245441592,-690.4,0.00024657,2]
[336928214,1725245441602,-690.4,0.00024657,2]
[336928216,1725245441613,-690.4,0.00024657,2]
[336928218,1725245441623,-690.4,0.00024657,2]
[336928220,1725245441635,-690.4,0.00024657,2]
[336928223,1725245441646,-690.4,0.00024657,2]
[336928225,1725245441656,-690.4,0.00024657,2]
[336928228,1725245441677,-690.4,0.00024657,2]
[336928230,1725245441689,-500.0,0.00024657,2]
[336928232,1725245441699,-690.4,0.00024657,2]
[336928234,1725245441708,-690.4,0.00024657,2]
[336928236,1725245441718,-500.0,0.00024657,2]
[336928238,1725245441727,-500.0,0.00024657,2]
[336928240,1725245441737,-500.0,0.00024657,2]
[336928242,1725245441746,-500.0,0.00024657,2]
[336928244,1725245441755,-500.0,0.00024657,2]
[336928246,1725245441765,-500.0,0.00024657,2]
[336928248,1725245441775,-500.0,0.00024657,2]
[336928250,1725245441784,-500.0,0.00024657,2]
[336928252,1725245441794,-537.43010146,0.00024657,2]
[336928254,1725245441805,-500.0,0.00024657,2]
[336928256,1725245441814,-500.0,0.00024657,2]
[336928258,1725245441824,-556.01,0.00024657,2]
[336928260,1725245441834,-595.1,0.00024657,2]
[336928262,1725245441843,-500.0,0.00024657,2]
[336928264,1725245441853,-500.0,0.00024657,2]
[336928266,1725245441863,-500.0,0.00024657,2]
[336928268,1725245441876,-500.0,0.00024657,2]
[336928271,1725245441887,-502.00677004,0.00024657,2]
[336928273,1725245441896,-500.0,0.00024657,2]
[336928275,1725245441907,-500.0,0.00024657,2]
[336928277,1725245441917,-500.0,0.00024657,2]
[336928279,1725245441926,-500.0,0.00024657,2]
[336928280,1725245441935,-500.0,0.00024657,2]
[336928282,1725245441944,-500.0,0.00024657,2]
[336928284,1725245441955,-500.0,0.00024657,2]
[336928286,1725245441965,-500.0,0.00024657,2]
[336928288,1725245441974,-500.0,0.00024657,2]
[336928290,1725245441984,-500.0,0.00024657,2]
[336928292,1725245441994,-500.0,0.00024657,2]
[336928294,1725245442004,-500.0,0.00024657,2]
[336928296,1725245442015,-500.0,0.00024657,2]
[336928297,1725245442024,-500.0,0.00024657,2]
[336928298,1725245442034,-500.0,0.00024657,2]
[336928299,1725245442044,-703.33,0.00024657,2]
[336928300,1725245442055,-500.0,0.00024657,2]
[336928301,1725245442064,-604.15753942,0.00024657,2]
[336928302,1725245442073,-506.96579072,0.00024657,2]
[336928303,1725245442083,-500.0,0.00024657,2]
[336928304,1725245442093,-566.19,0.00024657,2]
[336928305,1725245442103,-500.0,0.00024657,2]
[336928307,1725245442114,-500.32313212,0.00024657,2]
[336928309,1725245442125,-500.0,0.00024657,2]
[336928311,1725245442135,-624.3,0.00024657,2]
[336928313,1725245442145,-500.0,0.00024657,2]
[336928315,1725245442154,-507.24,0.00024657,2]
[336928317,1725245442164,-507.24,0.00024657,2]
[336928319,1725245442174,-507.24,0.00024657,2]
[336928321,1725245442184,-507.24,0.00024657,2]
[336928323,1725245442194,-624.34780266,0.00024657,2]
[336928325,1725245442203,-507.24,0.00024657,2]
[336928327,1725245442214,-507.24,0.00024657,2]
[336928330,1725245442225,-500.0,0.00024657,2]
[336928332,1725245442235,-507.24,0.00024657,2]
[336928334,1725245442246,-500.0,0.00024657,2]
[336928336,1725245442256,-507.24,0.00024657,2]
[336928338,1725245442266,-500.75241873,0.00024657,2]
[336928340,1725245442276,-507.24,0.00024657,2]
[336928342,1725245442289,-507.24,0.00024657,2]
[336928344,1725245442299,-500.0,0.00024657,2]
[336928346,1725245442309,-502.047019,0.00024657,2]
[336928348,1725245442318,-500.0,0.00024657,2]
[336928351,1725245442327,-600.21083165,0.00024657,2]
[336928353,1725245442337,-554.55,0.00024657,2]
[336928355,1725245442347,-502.1027319,0.00024657,2]
[336928357,1725245442357,-500.0,0.00024657,2]
[336928359,1725245442366,-502.74415736,0.00024657,2]
[336928361,1725245442375,-500.0,0.00024657,2]
[336928378,1725245442544,-663.39,0.00024657,2]
[336928380,1725245442568,-500.0,0.00024657,2]
[336928382,1725245442577,-424.60709905,0.00024657,2]
[336928384,1725245442587,-500.0,0.00024657,2]
[336928385,1725245442596,-501.51629579,0.00024657,2]
[336928386,1725245442605,-459.19660786,0.00024657,2]
[336928387,1725245442614,-500.0,0.00024657,2]
[336928388,1725245442623,-500.0,0.00024657,2]
[336928389,1725245442632,-500.0,0.00024657,2]
[336928390,1725245442642,-500.0,0.00024657,2]
[336928391,1725245442652,-500.0,0.00024657,2]
[336928392,1725245442661,-500.0,0.00024657,2]
[336928393,1725245442670,-500.0,0.00024657,2]
[336928394,1725245442683,-500.0,0.00024657,2]
[336928395,1725245442693,-500.0,0.00024657,2]
[336928396,1725245442702,-500.0,0.00024657,2]